[Event "Betsys MČR v online bleskovém šachu 2021"]
[Site "Chess.com"]
[Date "2021.04.17"]
[Round "3"]
[White "WhiteLittleHorse"]
[Black "trosecnik"]
[Result "0-1"]
[WhiteElo "961"]
[BlackElo "1843"]
[TimeControl "180+1"]
[EndTime "9:23:34 PDT"]
[Termination "Uživatel trosecnik zvítězil matem"]

1. e4 {[%clk 0:03:00.9]} 1... c5 {[%clk 0:02:55.4]} 2. Nf3 {[%clk 0:03:00.3]}
2... Nc6 {[%clk 0:02:52.7]} 3. Bc4 {[%clk 0:03:00]} 3... e6 {[%clk 0:02:52.1]}
4. e5 {[%clk 0:02:56.6]} 4... d5 {[%clk 0:02:49.6]} 5. Bb3 {[%clk 0:02:54.3]}
5... Qc7 {[%clk 0:02:42.2]} 6. c3 {[%clk 0:02:49.5]} 6... Nxe5 {[%clk
0:02:40.6]} 7. Nxe5 {[%clk 0:02:47.3]} 7... Qxe5+ {[%clk 0:02:41.5]} 8. Qe2
{[%clk 0:02:42]} 8... Qxe2+ {[%clk 0:02:27.7]} 9. Kxe2 {[%clk 0:02:39.9]} 9...
Nf6 {[%clk 0:02:28.6]} 10. d4 {[%clk 0:02:37]} 10... cxd4 {[%clk 0:02:24.7]} 11.
cxd4 {[%clk 0:02:37.9]} 11... Bd7 {[%clk 0:02:24.3]} 12. Bg5 {[%clk 0:02:35.6]}
12... Be7 {[%clk 0:02:24.3]} 13. Bxf6 {[%clk 0:02:33.1]} 13... Bxf6 {[%clk
0:02:25.2]} 14. Nc3 {[%clk 0:02:31.6]} 14... Bxd4 {[%clk 0:02:23.2]} 15. Rad1
{[%clk 0:02:26.5]} 15... Bxc3 {[%clk 0:02:23.4]} 16. bxc3 {[%clk 0:02:21.4]}
16... Rc8 {[%clk 0:02:23.8]} 17. Rd3 {[%clk 0:02:18.5]} 17... Bb5 {[%clk
0:02:22]} 18. c4 {[%clk 0:02:17]} 18... dxc4 {[%clk 0:02:21.4]} 19. Rc3 {[%clk
0:02:08.3]} 19... cxb3+ {[%clk 0:02:20.5]} 20. Kf3 {[%clk 0:02:06.1]} 20...
Rxc3+ {[%clk 0:02:19.9]} 21. Kg4 {[%clk 0:02:02.8]} 21... O-O {[%clk 0:02:08.7]}
22. Rd1 {[%clk 0:01:58.5]} 22... bxa2 {[%clk 0:02:06.7]} 23. Ra1 {[%clk
0:01:56.1]} 23... h5+ {[%clk 0:02:06.7]} 24. Kxh5 {[%clk 0:01:52.8]} 24... Rc4
{[%clk 0:02:07.1]} 25. g4 {[%clk 0:01:50.8]} 25... Rd8 {[%clk 0:02:04.3]} 26.
Rxa2 {[%clk 0:01:44.5]} 26... Rd5+ {[%clk 0:02:04.8]} 27. g5 {[%clk 0:01:42.2]}
27... f6 {[%clk 0:02:02.2]} 28. h4 {[%clk 0:01:41.3]} 28... fxg5 {[%clk
0:02:00.5]} 29. hxg5 {[%clk 0:01:40.7]} 29... Be8# {[%clk 0:02:01.2]} 0-1

[Event "Betsys MČR v online bleskovém šachu 2021"]
[Site "Chess.com"]
[Date "2021.04.17"]
[Round "3"]
[White "tondapesek"]
[Black "Klokan64"]
[Result "1/2-1/2"]
[WhiteElo "1075"]
[BlackElo "1422"]
[TimeControl "180+1"]
[EndTime "9:23:35 PDT"]
[Termination "Remíza opakováním pozice"]

1. e4 {[%clk 0:02:49.6]} 1... d6 {[%clk 0:02:59.5]} 2. d4 {[%clk 0:02:49.1]}
2... Nf6 {[%clk 0:02:58.2]} 3. Nc3 {[%clk 0:02:48.2]} 3... c6 {[%clk 0:02:56.1]}
4. Nf3 {[%clk 0:02:47.3]} 4... Bg4 {[%clk 0:02:55.2]} 5. Be2 {[%clk 0:02:46.9]}
5... e6 {[%clk 0:02:54.6]} 6. h3 {[%clk 0:02:45.2]} 6... Bh5 {[%clk 0:02:53.7]}
7. g4 {[%clk 0:02:44.9]} 7... Bg6 {[%clk 0:02:53.6]} 8. Bd2 {[%clk 0:02:41.7]}
8... Be7 {[%clk 0:02:53.4]} 9. O-O {[%clk 0:02:41.3]} 9... h5 {[%clk 0:02:42.3]}
10. gxh5 {[%clk 0:02:35.2]} 10... Rxh5 {[%clk 0:02:34.1]} 11. Kh2 {[%clk
0:02:34.1]} 11... Nxe4 {[%clk 0:02:28.7]} 12. Nxe4 {[%clk 0:02:32.9]} 12... Bxe4
{[%clk 0:02:28.3]} 13. Ng5 {[%clk 0:02:21.3]} 13... Rxg5 {[%clk 0:02:11.3]} 14.
Bxg5 {[%clk 0:02:20.6]} 14... Bxg5 {[%clk 0:02:11.1]} 15. Kg3 {[%clk 0:02:19.3]}
15... Bh4+ {[%clk 0:02:08.6]} 16. Kh2 {[%clk 0:02:17.2]} 16... Qg5 {[%clk
0:01:56.3]} 17. Bf3 {[%clk 0:02:14.9]} 17... Qf4+ {[%clk 0:01:52.6]} 18. Kg2
{[%clk 0:02:10]} 18... Qg5+ {[%clk 0:01:41]} 19. Kh2 {[%clk 0:02:07.7]} 19...
Bf5 {[%clk 0:01:37.9]} 20. Bg4 {[%clk 0:02:05.3]} 20... Qf4+ {[%clk 0:01:33.8]}
21. Kg2 {[%clk 0:02:03]} 21... Be4+ {[%clk 0:01:24.7]} 22. Bf3 {[%clk
0:02:00.9]} 22... Qg5+ {[%clk 0:01:22.4]} 23. Kh2 {[%clk 0:02:00.3]} 1/2-1/2

[Event "Betsys MČR v online bleskovém šachu 2021"]
[Site "Chess.com"]
[Date "2021.04.17"]
[Round "3"]
[White "tkokosek007"]
[Black "Maty_2010"]
[Result "1-0"]
[WhiteElo "1401"]
[BlackElo "895"]
[TimeControl "180+1"]
[EndTime "9:23:35 PDT"]
[Termination "Uživatel tkokosek007 zvítězil matem"]

1. d4 {[%clk 0:02:53.9]} 1... d5 {[%clk 0:02:58.8]} 2. Bf4 {[%clk 0:02:53.7]}
2... Bf5 {[%clk 0:02:57.3]} 3. e3 {[%clk 0:02:53.3]} 3... Nc6 {[%clk 0:02:56.8]}
4. Nf3 {[%clk 0:02:52.3]} 4... Qd7 {[%clk 0:02:56.2]} 5. Nbd2 {[%clk 0:02:43]}
5... O-O-O {[%clk 0:02:55.4]} 6. Bb5 {[%clk 0:02:38]} 6... Nf6 {[%clk
0:02:50.3]} 7. O-O {[%clk 0:02:36.8]} 7... e6 {[%clk 0:02:48.9]} 8. Ne5 {[%clk
0:02:27]} 8... Bb4 {[%clk 0:02:40.5]} 9. Nxd7 {[%clk 0:02:24.9]} 9... Rxd7
{[%clk 0:02:39.2]} 10. Bxc6 {[%clk 0:02:21]} 10... bxc6 {[%clk 0:02:39.3]} 11.
a3 {[%clk 0:02:20.8]} 11... Ba5 {[%clk 0:02:38.7]} 12. Nb3 {[%clk 0:02:15.6]}
12... Bb6 {[%clk 0:02:37.5]} 13. Nc5 {[%clk 0:02:15.2]} 13... Bxc5 {[%clk
0:02:36]} 14. dxc5 {[%clk 0:02:12.6]} 14... Re8 {[%clk 0:02:31.8]} 15. Qe2
{[%clk 0:02:06.6]} 15... e5 {[%clk 0:02:26.7]} 16. Bg3 {[%clk 0:02:04.1]} 16...
d4 {[%clk 0:02:24.3]} 17. Qa6+ {[%clk 0:02:01.6]} 17... Kb8 {[%clk 0:02:23.5]}
18. exd4 {[%clk 0:01:59]} 18... exd4 {[%clk 0:02:22.8]} 19. Rfe1 {[%clk
0:01:58.2]} 19... Rf8 {[%clk 0:02:18.3]} 20. Qxc6 {[%clk 0:01:47]} 20... h5
{[%clk 0:02:13.3]} 21. Bh4 {[%clk 0:01:41.3]} 21... Ng4 {[%clk 0:02:09.3]} 22.
Re7 {[%clk 0:01:29.9]} 22... Rdd8 {[%clk 0:02:04.3]} 23. Qxc7+ {[%clk
0:01:25.7]} 23... Ka8 {[%clk 0:02:04.1]} 24. Qb7# {[%clk 0:01:23.9]} 1-0

[Event "Betsys MČR v online bleskovém šachu 2021"]
[Site "Chess.com"]
[Date "2021.04.17"]
[Round "3"]
[White "koky_3"]
[Black "JaraLinhart"]
[Result "1-0"]
[WhiteElo "2052"]
[BlackElo "1676"]
[TimeControl "180+1"]
[EndTime "9:23:38 PDT"]
[Termination "Uživatel koky_3 zvítězil po vzdání soupeře"]

1. e4 {[%clk 0:02:53.7]} 1... e5 {[%clk 0:02:56.2]} 2. f4 {[%clk 0:02:48.9]}
2... exf4 {[%clk 0:02:55.5]} 3. Nf3 {[%clk 0:02:48.6]} 3... g5 {[%clk
0:02:55.3]} 4. h4 {[%clk 0:02:47.8]} 4... g4 {[%clk 0:02:52.1]} 5. Ne5 {[%clk
0:02:47.4]} 5... Nf6 {[%clk 0:02:43.8]} 6. Bc4 {[%clk 0:02:36]} 6... d5 {[%clk
0:02:25.2]} 7. exd5 {[%clk 0:02:34.7]} 7... Bd6 {[%clk 0:01:53.9]} 8. d4 {[%clk
0:02:33.3]} 8... h5 {[%clk 0:01:53.5]} 9. Bxf4 {[%clk 0:02:32.4]} 9... Bf5
{[%clk 0:01:24.7]} 10. Nc3 {[%clk 0:02:28.6]} 10... a6 {[%clk 0:01:22.2]} 11.
O-O {[%clk 0:02:23.3]} 11... O-O {[%clk 0:01:17]} 12. Bg5 {[%clk 0:02:22.6]} 1-0

[Event "Betsys MČR v online bleskovém šachu 2021"]
[Site "Chess.com"]
[Date "2021.04.17"]
[Round "3"]
[White "CzechMerlin"]
[Black "machajda"]
[Result "0-1"]
[WhiteElo "1666"]
[BlackElo "2021"]
[TimeControl "180+1"]
[EndTime "9:23:38 PDT"]
[Termination "Uživatel machajda zvítězil po vzdání soupeře"]

1. d4 {[%clk 0:03:00.9]} 1... Nf6 {[%clk 0:02:59.3]} 2. c4 {[%clk 0:03:01.3]}
2... e6 {[%clk 0:02:59.6]} 3. Nc3 {[%clk 0:03:01.7]} 3... Bb4 {[%clk 0:02:59]}
4. Nf3 {[%clk 0:03:02.1]} 4... c5 {[%clk 0:02:57]} 5. d5 {[%clk 0:03:01.6]} 5...
d6 {[%clk 0:02:55.4]} 6. Bg5 {[%clk 0:03:00.4]} 6... O-O {[%clk 0:02:55.2]} 7.
Qc2 {[%clk 0:02:58.6]} 7... Nbd7 {[%clk 0:02:52.5]} 8. a3 {[%clk 0:02:58]} 8...
Bxc3+ {[%clk 0:02:52]} 9. Qxc3 {[%clk 0:02:55]} 9... e5 {[%clk 0:02:52.3]} 10.
e3 {[%clk 0:02:46.8]} 10... h6 {[%clk 0:02:51.8]} 11. Bh4 {[%clk 0:02:46]} 11...
g5 {[%clk 0:02:50.9]} 12. Bg3 {[%clk 0:02:41.2]} 12... Ne4 {[%clk 0:02:49.9]}
13. Qc2 {[%clk 0:02:40.4]} 13... f5 {[%clk 0:02:48.6]} 14. Bd3 {[%clk
0:02:24.8]} 14... Ndf6 {[%clk 0:02:47.5]} 15. h3 {[%clk 0:02:21.3]} 15... Nxg3
{[%clk 0:02:44.8]} 16. fxg3 {[%clk 0:02:21]} 16... e4 {[%clk 0:02:44.7]} 17.
Bxe4 {[%clk 0:02:11.9]} 17... Nxe4 {[%clk 0:02:40.8]} 18. g4 {[%clk 0:02:09]}
18... Qe7 {[%clk 0:02:31.2]} 19. O-O-O {[%clk 0:02:04.5]} 19... Bd7 {[%clk
0:02:24.2]} 20. gxf5 {[%clk 0:02:04.1]} 20... Bxf5 {[%clk 0:02:23.3]} 21. g4
{[%clk 0:02:03.6]} 21... Bh7 {[%clk 0:02:20.4]} 22. Qg2 {[%clk 0:01:51]} 22...
Rae8 {[%clk 0:02:05.3]} 23. h4 {[%clk 0:01:50.5]} 23... Ng3 {[%clk 0:01:58.5]}
24. Qxg3 {[%clk 0:01:34.6]} 24... Qxe3+ {[%clk 0:01:58.2]} 0-1

[Event "Betsys MČR v online bleskovém šachu 2021"]
[Site "Chess.com"]
[Date "2021.04.17"]
[Round "3"]
[White "Molefancier"]
[Black "jankrelina07"]
[Result "0-1"]
[WhiteElo "1069"]
[BlackElo "1477"]
[TimeControl "180+1"]
[EndTime "9:23:38 PDT"]
[Termination "Uživatel jankrelina07 zvítězil po vzdání soupeře"]

1. e4 {[%clk 0:03:00.9]} 1... c5 {[%clk 0:02:59.3]} 2. Nf3 {[%clk 0:02:59.8]}
2... Nc6 {[%clk 0:02:59.1]} 3. Bb5 {[%clk 0:02:56.6]} 3... g6 {[%clk 0:02:55]}
4. O-O {[%clk 0:02:47.9]} 4... Bg7 {[%clk 0:02:54.3]} 5. Nc3 {[%clk 0:02:45]}
5... d6 {[%clk 0:02:53]} 6. d4 {[%clk 0:02:41]} 6... cxd4 {[%clk 0:02:42.2]} 7.
Nxd4 {[%clk 0:02:39.7]} 7... Bd7 {[%clk 0:02:42.3]} 8. Bxc6 {[%clk 0:02:38.3]}
8... bxc6 {[%clk 0:02:39.4]} 9. Be3 {[%clk 0:02:36.7]} 9... Nf6 {[%clk 0:02:37]}
10. h3 {[%clk 0:02:30.3]} 10... O-O {[%clk 0:02:36.2]} 11. Qd2 {[%clk
0:02:24.1]} 11... a6 {[%clk 0:02:35.5]} 12. Bh6 {[%clk 0:02:13.3]} 12... c5
{[%clk 0:02:25.9]} 13. Nf3 {[%clk 0:02:07.8]} 13... Bc6 {[%clk 0:02:20.6]} 14.
Rfe1 {[%clk 0:02:01.8]} 14... Rb8 {[%clk 0:02:12.5]} 15. Bxg7 {[%clk 0:01:59.9]}
15... Kxg7 {[%clk 0:02:10.9]} 16. e5 {[%clk 0:01:52.7]} 16... Ne8 {[%clk
0:01:52.9]} 17. exd6 {[%clk 0:01:47.1]} 17... exd6 {[%clk 0:01:44.5]} 18. Ne5
{[%clk 0:01:46]} 18... dxe5 {[%clk 0:01:41.2]} 19. Rxe5 {[%clk 0:01:41.3]} 19...
Qxd2 {[%clk 0:01:37.8]} 0-1

[Event "Betsys MČR v online bleskovém šachu 2021"]
[Site "Chess.com"]
[Date "2021.04.17"]
[Round "3"]
[White "sachovybukowski"]
[Black "Alesbar"]
[Result "1-0"]
[WhiteElo "1998"]
[BlackElo "1635"]
[TimeControl "180+1"]
[EndTime "9:23:39 PDT"]
[Termination "Uživatel sachovybukowski zvítězil po vzdání soupeře"]

1. d4 {[%clk 0:02:35.7]} 1... Nf6 {[%clk 0:02:58.9]} 2. Bg5 {[%clk 0:02:35.1]}
2... g6 {[%clk 0:02:56.2]} 3. c3 {[%clk 0:02:34.6]} 3... Bg7 {[%clk 0:02:55.9]}
4. e3 {[%clk 0:02:34.5]} 4... d5 {[%clk 0:02:55]} 5. Bd3 {[%clk 0:02:34.4]} 5...
O-O {[%clk 0:02:54.6]} 6. h4 {[%clk 0:02:33.8]} 6... h5 {[%clk 0:02:53.7]} 7.
Nf3 {[%clk 0:02:32.6]} 7... Nbd7 {[%clk 0:02:52.8]} 8. Nbd2 {[%clk 0:02:31.4]}
8... c5 {[%clk 0:02:52.2]} 9. Qe2 {[%clk 0:02:30.8]} 9... c4 {[%clk 0:02:51.2]}
10. Bc2 {[%clk 0:02:30.3]} 10... Re8 {[%clk 0:02:38.5]} 11. Ne5 {[%clk
0:02:16.5]} 11... Nxe5 {[%clk 0:02:33.6]} 12. dxe5 {[%clk 0:02:16.5]} 12... Ng4
{[%clk 0:02:33.4]} 13. f4 {[%clk 0:02:08.1]} 13... f6 {[%clk 0:02:23.2]} 14.
Bxg6 {[%clk 0:02:06.7]} 14... fxg5 {[%clk 0:02:22]} 15. hxg5 {[%clk 0:01:59.4]}
15... Nxe5 {[%clk 0:01:53.8]} 16. fxe5 {[%clk 0:01:56.5]} 16... Rf8 {[%clk
0:01:51.8]} 17. Qxh5 {[%clk 0:01:50.9]} 17... Rf5 {[%clk 0:01:30.5]} 18. Qh7+
{[%clk 0:01:48.3]} 18... Kf8 {[%clk 0:01:30.3]} 19. Bxf5 {[%clk 0:01:48.4]}
19... Bxf5 {[%clk 0:01:28.4]} 20. Qxf5+ {[%clk 0:01:47.5]} 1-0

[Event "Betsys MČR v online bleskovém šachu 2021"]
[Site "Chess.com"]
[Date "2021.04.17"]
[Round "3"]
[White "Michal5"]
[Black "iDarkTraveler"]
[Result "0-1"]
[WhiteElo "1227"]
[BlackElo "1968"]
[TimeControl "180+1"]
[EndTime "9:23:45 PDT"]
[Termination "Uživatel iDarkTraveler zvítězil po vzdání soupeře"]

1. e4 {[%clk 0:02:56.3]} 1... c5 {[%clk 0:02:59]} 2. Nf3 {[%clk 0:02:55.6]} 2...
Nc6 {[%clk 0:02:58.9]} 3. d4 {[%clk 0:02:55.6]} 3... cxd4 {[%clk 0:02:59.1]} 4.
Nxd4 {[%clk 0:02:56.5]} 4... e6 {[%clk 0:02:58.5]} 5. Nc3 {[%clk 0:02:55.7]}
5... a6 {[%clk 0:02:58.8]} 6. Be3 {[%clk 0:02:55.9]} 6... Nge7 {[%clk
0:02:58.6]} 7. f3 {[%clk 0:02:52.3]} 7... g6 {[%clk 0:02:56.9]} 8. Qd2 {[%clk
0:02:52.3]} 8... Bg7 {[%clk 0:02:56.5]} 9. O-O-O {[%clk 0:02:52.7]} 9... O-O
{[%clk 0:02:56.6]} 10. Bc4 {[%clk 0:02:24.4]} 10... b5 {[%clk 0:02:55.8]} 11.
Bb3 {[%clk 0:02:24]} 11... b4 {[%clk 0:02:53]} 12. Nce2 {[%clk 0:02:19.8]} 12...
a5 {[%clk 0:02:53.4]} 13. Nxc6 {[%clk 0:02:17.9]} 13... Nxc6 {[%clk 0:02:50.9]}
14. Nd4 {[%clk 0:02:17.8]} 14... Nxd4 {[%clk 0:02:42.2]} 15. Bxd4 {[%clk
0:02:16.9]} 15... Bxd4 {[%clk 0:02:40.5]} 16. Qxd4 {[%clk 0:02:17.7]} 16... Qc7
{[%clk 0:02:39.4]} 17. Kb1 {[%clk 0:02:09.7]} 17... Rd8 {[%clk 0:02:12.6]} 18.
Qf6 {[%clk 0:02:00.9]} 18... Bb7 {[%clk 0:02:00.6]} 19. Rd2 {[%clk 0:01:52.8]}
19... a4 {[%clk 0:02:00.6]} 20. Bxe6 {[%clk 0:01:36.8]} 20... dxe6 {[%clk
0:01:56.6]} 21. Rhd1 {[%clk 0:01:34.6]} 21... Rxd2 {[%clk 0:01:55.9]} 22. Rxd2
{[%clk 0:01:34]} 22... a3 {[%clk 0:01:51.5]} 23. bxa3 {[%clk 0:01:32.3]} 23...
bxa3 {[%clk 0:01:50]} 0-1

[Event "Betsys MČR v online bleskovém šachu 2021"]
[Site "Chess.com"]
[Date "2021.04.17"]
[Round "3"]
[White "adambelaska"]
[Black "bumurubac"]
[Result "1-0"]
[WhiteElo "1439"]
[BlackElo "1014"]
[TimeControl "180+1"]
[EndTime "9:23:52 PDT"]
[Termination "Uživatel adambelaska zvítězil matem"]

1. d4 {[%clk 0:03:00.9]} 1... e6 {[%clk 0:02:59.6]} 2. c4 {[%clk 0:02:59.3]}
2... Nc6 {[%clk 0:02:58.1]} 3. Nf3 {[%clk 0:02:55.6]} 3... Nf6 {[%clk
0:02:56.4]} 4. Nc3 {[%clk 0:02:50.8]} 4... Bb4 {[%clk 0:02:54.8]} 5. Bd2 {[%clk
0:02:47.6]} 5... Bxc3 {[%clk 0:02:54.2]} 6. Bxc3 {[%clk 0:02:47]} 6... O-O
{[%clk 0:02:53.9]} 7. e3 {[%clk 0:02:44.9]} 7... Ne4 {[%clk 0:02:52.6]} 8. Qc2
{[%clk 0:02:42.5]} 8... Nxc3 {[%clk 0:02:50.6]} 9. bxc3 {[%clk 0:02:41.3]} 9...
b6 {[%clk 0:02:49.8]} 10. Bd3 {[%clk 0:02:38.9]} 10... g6 {[%clk 0:02:45.6]} 11.
h4 {[%clk 0:02:30.9]} 11... d5 {[%clk 0:02:45.3]} 12. cxd5 {[%clk 0:02:23.3]}
12... exd5 {[%clk 0:02:44.2]} 13. c4 {[%clk 0:02:23.6]} 13... dxc4 {[%clk
0:02:43.5]} 14. Bxc4 {[%clk 0:02:23]} 14... Be6 {[%clk 0:02:42.1]} 15. Bxe6
{[%clk 0:02:19.2]} 15... fxe6 {[%clk 0:02:40.3]} 16. Qxc6 {[%clk 0:02:18.2]}
16... Qe8 {[%clk 0:02:34.1]} 17. Qxe8 {[%clk 0:02:16.4]} 17... Raxe8 {[%clk
0:02:33.2]} 18. Ne5 {[%clk 0:02:16]} 18... Rd8 {[%clk 0:02:29.7]} 19. Nc6 {[%clk
0:02:14.5]} 19... Ra8 {[%clk 0:02:28]} 20. Rc1 {[%clk 0:02:11.3]} 20... Rf6
{[%clk 0:02:26.2]} 21. Ne7+ {[%clk 0:02:09.6]} 21... Kf7 {[%clk 0:02:24.5]} 22.
Rxc7 {[%clk 0:02:08.5]} 22... Re8 {[%clk 0:02:23]} 23. Nd5+ {[%clk 0:02:05.3]}
23... Kf8 {[%clk 0:02:19.7]} 24. Nxf6 {[%clk 0:02:04.4]} 24... Re7 {[%clk
0:02:19.4]} 25. Nxh7+ {[%clk 0:02:03.4]} 25... Rxh7 {[%clk 0:02:17.9]} 26. Rxh7
{[%clk 0:02:03]} 26... Kg8 {[%clk 0:02:17.1]} 27. Rxa7 {[%clk 0:02:02.7]} 27...
Kf8 {[%clk 0:02:15.2]} 28. Ra8+ {[%clk 0:02:02.2]} 28... Kf7 {[%clk 0:02:14.5]}
29. Rb8 {[%clk 0:02:01.9]} 29... Ke7 {[%clk 0:02:13.5]} 30. Rxb6 {[%clk
0:02:01.6]} 30... Kd7 {[%clk 0:02:12.3]} 31. Rb7+ {[%clk 0:02:01.5]} 31... Kd6
{[%clk 0:02:11.8]} 32. Rg7 {[%clk 0:02:00.1]} 32... Kc6 {[%clk 0:02:10.8]} 33.
Rxg6 {[%clk 0:01:59.8]} 33... Kd7 {[%clk 0:02:10.6]} 34. h5 {[%clk 0:01:58.2]}
34... Kc7 {[%clk 0:02:09.8]} 35. h6 {[%clk 0:01:58.4]} 35... Kd7 {[%clk
0:02:08.5]} 36. h7 {[%clk 0:01:58.8]} 36... Ke7 {[%clk 0:02:08.6]} 37. h8=Q
{[%clk 0:01:57.4]} 37... Kf7 {[%clk 0:02:08.1]} 38. Rxe6 {[%clk 0:01:57.1]}
38... Kxe6 {[%clk 0:02:03.8]} 39. Qe5+ {[%clk 0:01:56.8]} 39... Kf7 {[%clk
0:02:03]} 40. Rh7+ {[%clk 0:01:56.3]} 40... Kg6 {[%clk 0:01:59.5]} 41. Rg7+
{[%clk 0:01:54.2]} 41... Kh6 {[%clk 0:01:59]} 42. Qg5# {[%clk 0:01:54.2]} 1-0

[Event "Betsys MČR v online bleskovém šachu 2021"]
[Site "Chess.com"]
[Date "2021.04.17"]
[Round "3"]
[White "misacz"]
[Black "Svisthorsky"]
[Result "0-1"]
[WhiteElo "1075"]
[BlackElo "1475"]
[TimeControl "180+1"]
[EndTime "9:23:56 PDT"]
[Termination "Uživatel Svisthorsky zvítězil po vzdání soupeře"]

1. d4 {[%clk 0:03:00.6]} 1... d5 {[%clk 0:02:58.2]} 2. c4 {[%clk 0:02:59.4]}
2... Nf6 {[%clk 0:02:57.9]} 3. Nf3 {[%clk 0:02:58]} 3... e6 {[%clk 0:02:54.4]}
4. Bg5 {[%clk 0:02:56.6]} 4... Be7 {[%clk 0:02:53.3]} 5. Nc3 {[%clk 0:02:55.8]}
5... c5 {[%clk 0:02:52.8]} 6. e3 {[%clk 0:02:54.2]} 6... cxd4 {[%clk 0:02:52]}
7. exd4 {[%clk 0:02:53.8]} 7... Nc6 {[%clk 0:02:48.3]} 8. cxd5 {[%clk
0:02:53.5]} 8... exd5 {[%clk 0:02:48.2]} 9. Qe2 {[%clk 0:02:50.3]} 9... Be6
{[%clk 0:02:44.6]} 10. Qe3 {[%clk 0:02:42.6]} 10... O-O {[%clk 0:02:36.5]} 11.
Bb5 {[%clk 0:02:41.4]} 11... a6 {[%clk 0:02:33.5]} 12. Bxc6 {[%clk 0:02:40.9]}
12... bxc6 {[%clk 0:02:33.6]} 13. Bxf6 {[%clk 0:02:40.8]} 13... Bxf6 {[%clk
0:02:32.4]} 14. Ne5 {[%clk 0:02:40]} 14... Rc8 {[%clk 0:02:23.4]} 15. O-O {[%clk
0:02:37.2]} 15... c5 {[%clk 0:02:23.2]} 16. dxc5 {[%clk 0:02:34.4]} 16... Qa5
{[%clk 0:02:13.3]} 17. Nd3 {[%clk 0:02:16.7]} 17... d4 {[%clk 0:02:08.4]} 18. b4
{[%clk 0:02:08.7]} 18... Qd8 {[%clk 0:01:56.3]} 19. Qg3 {[%clk 0:01:43.3]} 19...
dxc3 {[%clk 0:01:49.6]} 20. Rac1 {[%clk 0:01:44.2]} 20... Bc4 {[%clk 0:01:38.6]}
21. Nb2 {[%clk 0:01:38.7]} 21... Bxf1 {[%clk 0:01:36.2]} 22. Kxf1 {[%clk
0:01:35.6]} 22... cxb2 {[%clk 0:01:34.5]} 0-1

[Event "Betsys MČR v online bleskovém šachu 2021"]
[Site "Chess.com"]
[Date "2021.04.17"]
[Round "3"]
[White "Richter_Rudolf"]
[Black "keram91"]
[Result "1-0"]
[WhiteElo "1307"]
[BlackElo "760"]
[TimeControl "180+1"]
[EndTime "9:24:09 PDT"]
[Termination "Uživatel Richter_Rudolf zvítězil matem"]

1. d4 {[%clk 0:03:00.9]} 1... d5 {[%clk 0:02:59.1]} 2. c4 {[%clk 0:03:00.4]}
2... dxc4 {[%clk 0:02:58.7]} 3. e4 {[%clk 0:02:57.3]} 3... Nc6 {[%clk
0:02:55.6]} 4. Nf3 {[%clk 0:02:54.5]} 4... Bg4 {[%clk 0:02:50.8]} 5. Be3 {[%clk
0:02:49.2]} 5... Bxf3 {[%clk 0:02:50.3]} 6. gxf3 {[%clk 0:02:46.9]} 6... e5
{[%clk 0:02:49.5]} 7. d5 {[%clk 0:02:41.4]} 7... Nd4 {[%clk 0:02:46.6]} 8. Bxd4
{[%clk 0:02:39]} 8... exd4 {[%clk 0:02:46.6]} 9. Qxd4 {[%clk 0:02:38.2]} 9...
Bb4+ {[%clk 0:02:45.9]} 10. Nc3 {[%clk 0:02:37.3]} 10... Bxc3+ {[%clk
0:02:45.6]} 11. Qxc3 {[%clk 0:02:36]} 11... Ne7 {[%clk 0:02:44.8]} 12. Qxg7
{[%clk 0:02:32.2]} 12... Rf8 {[%clk 0:02:44.7]} 13. Bxc4 {[%clk 0:02:10.2]}
13... c6 {[%clk 0:02:40.9]} 14. Qe5 {[%clk 0:01:56.5]} 14... Qa5+ {[%clk
0:02:37.3]} 15. Qc3 {[%clk 0:01:50.4]} 15... Qxc3+ {[%clk 0:02:33.1]} 16. bxc3
{[%clk 0:01:49.7]} 16... cxd5 {[%clk 0:02:32.4]} 17. Bxd5 {[%clk 0:01:45.9]}
17... Nxd5 {[%clk 0:02:31.4]} 18. exd5 {[%clk 0:01:46]} 18... Rc8 {[%clk
0:02:31.3]} 19. Rc1 {[%clk 0:01:44.9]} 19... b5 {[%clk 0:02:30.7]} 20. Kd2
{[%clk 0:01:43.1]} 20... f5 {[%clk 0:02:29.7]} 21. Rhe1+ {[%clk 0:01:42.9]}
21... Kd8 {[%clk 0:02:27.9]} 22. Re6 {[%clk 0:01:39.9]} 22... b4 {[%clk
0:02:25.9]} 23. c4 {[%clk 0:01:38.9]} 23... b3 {[%clk 0:02:23.9]} 24. axb3
{[%clk 0:01:38.2]} 24... a5 {[%clk 0:02:23.3]} 25. d6 {[%clk 0:01:36.4]} 25...
f4 {[%clk 0:02:21.7]} 26. Rce1 {[%clk 0:01:34.9]} 26... a4 {[%clk 0:02:18.8]}
27. Kc3 {[%clk 0:01:12.4]} 27... axb3 {[%clk 0:02:17.6]} 28. Kxb3 {[%clk
0:01:12.4]} 28... Rb8+ {[%clk 0:02:17.7]} 29. Kc3 {[%clk 0:01:12.2]} 29... Ra8
{[%clk 0:02:16.7]} 30. Kd4 {[%clk 0:01:08.9]} 30... Ra2 {[%clk 0:02:15.2]} 31.
Kd5 {[%clk 0:01:01.6]} 31... Re8 {[%clk 0:02:14.2]} 32. Rxe8+ {[%clk 0:01:01.2]}
32... Kd7 {[%clk 0:02:11.6]} 33. R1e7# {[%clk 0:01:00.8]} 1-0